[Event "*** Titled Tuesday Blitz"]
[Site "Chess.com"]
[Date "2020.10.27"]
[Round "8"]
[White "shnitez"]
[Black "Shivagami"]
[Result "1-0"]
[WhiteElo "2439"]
[BlackElo "2266"]
[TimeControl "180+1"]
[EndTime "11:30:31 PDT"]
[Termination "shnitez won by resignation"]

1. c4 {[%clk 0:03:00.9]} 1... e5 {[%clk 0:02:58.8]} 2. Nc3 {[%clk 0:03:00.8]}
2... Bb4 {[%clk 0:02:58.2]} 3. Qc2 {[%clk 0:02:54.2]} 3... Bxc3 {[%clk
0:02:39.1]} 4. Qxc3 {[%clk 0:02:53.1]} 4... Qe7 {[%clk 0:02:37.5]} 5. g3 {[%clk
0:02:48]} 5... d6 {[%clk 0:02:35.4]} 6. Bg2 {[%clk 0:02:48.2]} 6... f5 {[%clk
0:02:34.4]} 7. b3 {[%clk 0:02:32.3]} 7... Nf6 {[%clk 0:02:33.7]} 8. e3 {[%clk
0:02:25.5]} 8... O-O {[%clk 0:02:33.6]} 9. Ne2 {[%clk 0:02:25.4]} 9... c6 {[%clk
0:02:27]} 10. Bb2 {[%clk 0:02:19.7]} 10... Be6 {[%clk 0:02:23.4]} 11. O-O {[%clk
0:01:57.5]} 11... Nbd7 {[%clk 0:02:20.4]} 12. d3 {[%clk 0:01:45.2]} 12... d5
{[%clk 0:02:17.9]} 13. a4 {[%clk 0:01:34.6]} 13... Rf7 {[%clk 0:02:08.5]} 14. b4
{[%clk 0:01:25.6]} 14... Rd8 {[%clk 0:01:59.4]} 15. b5 {[%clk 0:01:22]} 15... c5
{[%clk 0:01:51.8]} 16. cxd5 {[%clk 0:01:15.2]} 16... Nxd5 {[%clk 0:01:48.8]} 17.
Qd2 {[%clk 0:01:01.6]} 17... Nb4 {[%clk 0:01:37.1]} 18. Bc3 {[%clk 0:00:50]}
18... Nd5 {[%clk 0:01:25.4]} 19. Bb2 {[%clk 0:00:39.2]} 19... Rf6 {[%clk
0:01:17.4]} 20. f4 {[%clk 0:00:25.6]} 20... Rh6 {[%clk 0:01:07.6]} 21. fxe5
{[%clk 0:00:24.7]} 21... Qg5 {[%clk 0:01:02.9]} 22. Nf4 {[%clk 0:00:23.5]} 22...
Nxf4 {[%clk 0:00:41.4]} 23. exf4 {[%clk 0:00:21.9]} 23... Qe7 {[%clk 0:00:40.3]}
24. Bxb7 {[%clk 0:00:19.2]} 24... Nb6 {[%clk 0:00:39.7]} 25. Bg2 {[%clk
0:00:13.6]} 25... Nc4 {[%clk 0:00:38.5]} 26. Qc3 {[%clk 0:00:13.6]} 26... Ne3
{[%clk 0:00:32]} 27. Bf3 {[%clk 0:00:08.1]} 27... Nxf1 {[%clk 0:00:28.9]} 28.
Rxf1 {[%clk 0:00:09]} 28... Bd5 {[%clk 0:00:28.6]} 29. Bxd5+ {[%clk 0:00:09.1]}
29... Rxd5 {[%clk 0:00:28.6]} 30. Qc4 {[%clk 0:00:09.1]} 30... Qd7 {[%clk
0:00:25.8]} 31. Re1 {[%clk 0:00:07.9]} 31... Kh8 {[%clk 0:00:23.4]} 32. Re3
{[%clk 0:00:06.3]} 32... Re6 {[%clk 0:00:23.4]} 33. Kf2 {[%clk 0:00:05.3]} 33...
h6 {[%clk 0:00:21]} 34. a5 {[%clk 0:00:04.8]} 34... Kh7 {[%clk 0:00:19.4]} 35.
h4 {[%clk 0:00:04.8]} 35... Qc7 {[%clk 0:00:14.9]} 36. Bc3 {[%clk 0:00:04.9]}
36... Qd8 {[%clk 0:00:12]} 37. Ke2 {[%clk 0:00:04.8]} 37... Re7 {[%clk
0:00:11.2]} 38. Rf3 {[%clk 0:00:04.8]} 38... Rdd7 {[%clk 0:00:10.6]} 39. Rf2
{[%clk 0:00:04.2]} 39... Rc7 {[%clk 0:00:10.3]} 40. Rf3 {[%clk 0:00:04]} 40...
Red7 {[%clk 0:00:10.6]} 41. Re3 {[%clk 0:00:03.8]} 41... Qb8 {[%clk 0:00:10.4]}
42. e6 {[%clk 0:00:04.1]} 42... Re7 {[%clk 0:00:10.6]} 43. Be5 {[%clk
0:00:03.9]} 43... Qb7 {[%clk 0:00:10.3]} 44. Bxc7 {[%clk 0:00:03.9]} 44... Qxc7
{[%clk 0:00:10.8]} 45. Qd5 {[%clk 0:00:03.7]} 45... Qxa5 {[%clk 0:00:09.9]} 46.
Qxf5+ {[%clk 0:00:03.6]} 46... g6 {[%clk 0:00:09]} 47. Qd5 {[%clk 0:00:02.4]}
47... Qxb5 {[%clk 0:00:06.6]} 48. h5 {[%clk 0:00:02.7]} 48... Qb2+ {[%clk
0:00:06.7]} 49. Kf3 {[%clk 0:00:03.1]} 49... Qc1 {[%clk 0:00:07.2]} 50. hxg6+
{[%clk 0:00:03.1]} 50... Kxg6 {[%clk 0:00:06.3]} 51. Qe4+ {[%clk 0:00:03.4]}
51... Kg7 {[%clk 0:00:06.5]} 52. Qe5+ {[%clk 0:00:03.9]} 52... Kh7 {[%clk
0:00:07]} 53. Qf5+ {[%clk 0:00:04]} 53... Kg7 {[%clk 0:00:07.5]} 54. Qe5+ {[%clk
0:00:04.3]} 54... Kh7 {[%clk 0:00:07.7]} 55. Re2 {[%clk 0:00:03.6]} 55... Qh1+
{[%clk 0:00:06.9]} 56. Kf2 {[%clk 0:00:03.4]} 56... Qh2+ {[%clk 0:00:06.6]} 57.
Ke1 {[%clk 0:00:03.7]} 57... Qxg3+ {[%clk 0:00:06.5]} 58. Kd2 {[%clk 0:00:03.8]}
58... Qg6 {[%clk 0:00:05.7]} 59. f5 {[%clk 0:00:03.5]} 59... Qg5+ {[%clk
0:00:05.9]} 60. Kc2 {[%clk 0:00:03.5]} 60... c4 {[%clk 0:00:04.8]} 61. f6 {[%clk
0:00:03.6]} 61... Qxe5 {[%clk 0:00:04.3]} 62. Rxe5 {[%clk 0:00:02.9]} 62...
cxd3+ {[%clk 0:00:05.2]} 63. Kxd3 {[%clk 0:00:03.8]} 63... Rc7 {[%clk
0:00:05.6]} 64. e7 {[%clk 0:00:03.9]} 64... Rd7+ {[%clk 0:00:06]} 65. Ke4 {[%clk
0:00:04]} 1-0

[Event "*** Titled Tuesday Blitz"]
[Site "Chess.com"]
[Date "2020.10.27"]
[Round "8"]
[White "Guenplen"]
[Black "Bigfish1995"]
[Result "0-1"]
[WhiteElo "2843"]
[BlackElo "3016"]
[TimeControl "180+1"]
[EndTime "11:30:34 PDT"]
[Termination "Bigfish1995 won on time"]

1. d4 {[%clk 0:03:00.9]} 1... d5 {[%clk 0:02:44.7]} 2. Bf4 {[%clk 0:03:00.8]}
2... c5 {[%clk 0:02:43.4]} 3. e3 {[%clk 0:03:01.2]} 3... cxd4 {[%clk 0:02:43.3]}
4. exd4 {[%clk 0:03:01.3]} 4... Nc6 {[%clk 0:02:44]} 5. c3 {[%clk 0:03:01.5]}
5... f6 {[%clk 0:02:43.1]} 6. Nf3 {[%clk 0:02:38.9]} 6... g6 {[%clk 0:02:35.2]}
7. Be2 {[%clk 0:02:27]} 7... Bh6 {[%clk 0:02:24.9]} 8. Bg3 {[%clk 0:02:19.1]}
8... e6 {[%clk 0:02:22.2]} 9. O-O {[%clk 0:02:18.3]} 9... Nge7 {[%clk
0:02:22.2]} 10. c4 {[%clk 0:02:17.8]} 10... Nf5 {[%clk 0:02:01.9]} 11. Nc3
{[%clk 0:02:16.4]} 11... O-O {[%clk 0:01:57.3]} 12. Re1 {[%clk 0:02:11.5]} 12...
dxc4 {[%clk 0:01:44.1]} 13. Bxc4 {[%clk 0:02:08]} 13... Nfxd4 {[%clk 0:01:40.4]}
14. Nxd4 {[%clk 0:02:04.4]} 14... Nxd4 {[%clk 0:01:39.3]} 15. Ne4 {[%clk
0:01:37.1]} 15... Kh8 {[%clk 0:01:32.5]} 16. Bd6 {[%clk 0:01:31.8]} 16... e5
{[%clk 0:01:28.3]} 17. Bxf8 {[%clk 0:01:04.7]} 17... Qxf8 {[%clk 0:01:29.2]} 18.
Nc3 {[%clk 0:01:00.8]} 18... Bf5 {[%clk 0:01:28.8]} 19. Bd3 {[%clk 0:01:00.6]}
19... Bd7 {[%clk 0:00:45.3]} 20. Be4 {[%clk 0:00:51.8]} 20... Rd8 {[%clk
0:00:45.1]} 21. Qd3 {[%clk 0:00:44.9]} 21... Qb4 {[%clk 0:00:43.2]} 22. Nd5
{[%clk 0:00:40.8]} 22... Qd6 {[%clk 0:00:41.2]} 23. Nc3 {[%clk 0:00:39.4]} 23...
f5 {[%clk 0:00:32.7]} 24. Bxb7 {[%clk 0:00:36]} 24... e4 {[%clk 0:00:33.2]} 25.
Bxe4 {[%clk 0:00:26.3]} 25... fxe4 {[%clk 0:00:32.2]} 26. Nxe4 {[%clk
0:00:25.2]} 26... Qb6 {[%clk 0:00:32.2]} 27. Rad1 {[%clk 0:00:16.1]} 27... Bg4
{[%clk 0:00:29.9]} 28. Qc3 {[%clk 0:00:05]} 28... Bg7 {[%clk 0:00:19.3]} 29. Kh1
{[%clk 0:00:02.9]} 29... Bxd1 {[%clk 0:00:18.6]} 30. Rxd1 {[%clk 0:00:03.8]}
30... Nf5 {[%clk 0:00:17.3]} 31. Rxd8+ {[%clk 0:00:02.9]} 31... Qxd8 {[%clk
0:00:18.2]} 32. Qc2 {[%clk 0:00:03.5]} 32... Bd4 {[%clk 0:00:18]} 33. g3 {[%clk
0:00:03.3]} 33... Kg7 {[%clk 0:00:17.7]} 34. Kg2 {[%clk 0:00:03.4]} 34... Qe7
{[%clk 0:00:18]} 35. b3 {[%clk 0:00:02.9]} 35... Bb6 {[%clk 0:00:18.1]} 36. Qc4
{[%clk 0:00:02.7]} 36... Nd4 {[%clk 0:00:17.9]} 37. Qd5 {[%clk 0:00:02.4]} 37...
Nf5 {[%clk 0:00:15.8]} 38. h4 {[%clk 0:00:02.2]} 38... Qf7 {[%clk 0:00:15.4]}
39. Qxf7+ {[%clk 0:00:02.1]} 39... Kxf7 {[%clk 0:00:15.5]} 40. Ng5+ {[%clk
0:00:03]} 40... Kg7 {[%clk 0:00:15.8]} 41. Ne6+ {[%clk 0:00:03]} 41... Kf6
{[%clk 0:00:16.1]} 42. Nf4 {[%clk 0:00:03.4]} 42... h5 {[%clk 0:00:16.1]} 43.
Kf3 {[%clk 0:00:03.3]} 43... Bc5 {[%clk 0:00:15]} 44. Ke2 {[%clk 0:00:02.7]}
44... Nd4+ {[%clk 0:00:14.6]} 45. Kd3 {[%clk 0:00:02.8]} 45... Ne6 {[%clk
0:00:14.8]} 46. Nh3 {[%clk 0:00:02.1]} 46... Kf5 {[%clk 0:00:14.6]} 47. f3
{[%clk 0:00:02.1]} 47... Bd6 {[%clk 0:00:12.7]} 48. g4+ {[%clk 0:00:01.9]} 48...
hxg4 {[%clk 0:00:12.8]} 49. fxg4+ {[%clk 0:00:02.8]} 49... Kxg4 {[%clk
0:00:13.4]} 50. Nf2+ {[%clk 0:00:03.2]} 50... Kxh4 {[%clk 0:00:13.8]} 51. Ne4
{[%clk 0:00:04.1]} 51... Be5 {[%clk 0:00:13.7]} 52. Kc4 {[%clk 0:00:04.2]} 52...
Nf4 {[%clk 0:00:13]} 53. Kb5 {[%clk 0:00:03.8]} 53... Bd4 {[%clk 0:00:12.9]} 54.
Kc4 {[%clk 0:00:03.9]} 54... Bb6 {[%clk 0:00:12.6]} 55. b4 {[%clk 0:00:04.2]}
55... g5 {[%clk 0:00:12.6]} 56. a4 {[%clk 0:00:04.6]} 56... g4 {[%clk
0:00:12.8]} 57. a5 {[%clk 0:00:05]} 57... Be3 {[%clk 0:00:13]} 58. b5 {[%clk
0:00:05.3]} 58... Ne6 {[%clk 0:00:13.1]} 59. Kd5 {[%clk 0:00:04.7]} 59... Ng5
{[%clk 0:00:13.3]} 60. Nc3 {[%clk 0:00:04.9]} 60... g3 {[%clk 0:00:12.8]} 61.
Ne2 {[%clk 0:00:05.3]} 61... g2 {[%clk 0:00:13.3]} 62. b6 {[%clk 0:00:05.2]}
62... axb6 {[%clk 0:00:11.6]} 63. axb6 {[%clk 0:00:05.6]} 63... Bxb6 {[%clk
0:00:11.2]} 64. Ke5 {[%clk 0:00:06.1]} 64... Be3 {[%clk 0:00:10.8]} 65. Kf5
{[%clk 0:00:06]} 65... Nf3 {[%clk 0:00:08.5]} 66. Ke4 {[%clk 0:00:06]} 66... Nd4
{[%clk 0:00:08.5]} 0-1

[Event "*** Titled Tuesday Blitz"]
[Site "Chess.com"]
[Date "2020.10.27"]
[Round "8"]
[White "anon102030"]
[Black "SARGISMV"]
[Result "1-0"]
[WhiteElo "2743"]
[BlackElo "2516"]
[TimeControl "180+1"]
[EndTime "11:30:39 PDT"]
[Termination "anon102030 won by resignation"]

1. e4 {[%clk 0:02:54.1]} 1... e6 {[%clk 0:02:59.6]} 2. d3 {[%clk 0:02:47.7]}
2... d5 {[%clk 0:02:59.7]} 3. Nd2 {[%clk 0:02:47.6]} 3... Nf6 {[%clk 0:03:00.2]}
4. g3 {[%clk 0:02:47.7]} 4... c5 {[%clk 0:03:00.7]} 5. Bg2 {[%clk 0:02:47.2]}
5... Nc6 {[%clk 0:03:01.4]} 6. Ngf3 {[%clk 0:02:47.1]} 6... g6 {[%clk 0:03:02]}
7. O-O {[%clk 0:02:46.9]} 7... Bg7 {[%clk 0:03:02.6]} 8. Rb1 {[%clk 0:02:46.7]}
8... O-O {[%clk 0:03:03.1]} 9. b3 {[%clk 0:02:46.9]} 9... a5 {[%clk 0:03:03.1]}
10. a4 {[%clk 0:02:46.2]} 10... b6 {[%clk 0:02:59.5]} 11. Bb2 {[%clk 0:02:46.2]}
11... Ba6 {[%clk 0:03:00.1]} 12. Re1 {[%clk 0:02:46.2]} 12... Rc8 {[%clk
0:02:51.4]} 13. Ne5 {[%clk 0:02:43.6]} 13... Nxe5 {[%clk 0:02:50.2]} 14. Bxe5
{[%clk 0:02:44.5]} 14... c4 {[%clk 0:02:46.3]} 15. bxc4 {[%clk 0:02:36.1]} 15...
dxc4 {[%clk 0:02:45.8]} 16. d4 {[%clk 0:02:36.8]} 16... c3 {[%clk 0:02:30.2]}
17. Nf3 {[%clk 0:02:36.2]} 17... Rc4 {[%clk 0:02:19]} 18. Bf1 {[%clk 0:02:32]}
18... Qa8 {[%clk 0:02:10.3]} 19. Bxc4 {[%clk 0:02:28.5]} 19... Bxc4 {[%clk
0:02:11.2]} 20. Bxf6 {[%clk 0:02:21.7]} 20... Bxf6 {[%clk 0:02:09.9]} 21. Rxb6
{[%clk 0:02:21.8]} 21... Rd8 {[%clk 0:01:56]} 22. Qc1 {[%clk 0:02:14.1]} 22...
Rxd4 {[%clk 0:01:42.2]} 23. Qf4 {[%clk 0:01:51.7]} 23... Bd8 {[%clk 0:01:19.6]}
24. Rb8 {[%clk 0:01:47.3]} 24... Qa7 {[%clk 0:01:18.9]} 25. Nxd4 {[%clk
0:01:32.9]} 25... Qxd4 {[%clk 0:01:19.8]} 26. Qf3 {[%clk 0:01:23.8]} 26... Kg7
{[%clk 0:01:17.9]} 27. Rd1 {[%clk 0:01:22.4]} 27... Qf6 {[%clk 0:01:13.1]} 28.
Qxf6+ {[%clk 0:01:10.7]} 28... Bxf6 {[%clk 0:01:14]} 29. f4 {[%clk 0:01:06.9]}
29... e5 {[%clk 0:01:09.9]} 30. Ra8 {[%clk 0:00:50.7]} 30... Be2 {[%clk
0:00:50.4]} 31. Rd6 {[%clk 0:00:48.9]} 31... Bf3 {[%clk 0:00:49.4]} 32. Rxf6
{[%clk 0:00:41.7]} 32... Kxf6 {[%clk 0:00:49]} 33. Ra6+ {[%clk 0:00:42.6]} 33...
Ke7 {[%clk 0:00:48.4]} 34. fxe5 {[%clk 0:00:41.2]} 34... Bxe4 {[%clk 0:00:48.3]}
35. Rxa5 {[%clk 0:00:38.2]} 35... Bxc2 {[%clk 0:00:48.2]} 36. Rc5 {[%clk
0:00:21.7]} 36... Bxa4 {[%clk 0:00:47.3]} 37. Rxc3 {[%clk 0:00:21.9]} 37... Ke6
{[%clk 0:00:45.9]} 38. Rc5 {[%clk 0:00:22]} 38... Bb3 {[%clk 0:00:45.5]} 39. Kf2
{[%clk 0:00:20.1]} 39... Bd5 {[%clk 0:00:45.6]} 40. Ke3 {[%clk 0:00:17.1]} 40...
Kxe5 {[%clk 0:00:45.9]} 41. Ra5 {[%clk 0:00:16.7]} 41... h6 {[%clk 0:00:41.5]}
42. Ra7 {[%clk 0:00:13.1]} 42... Be6 {[%clk 0:00:36]} 43. Ra5+ {[%clk
0:00:10.8]} 43... Bd5 {[%clk 0:00:36.3]} 44. h4 {[%clk 0:00:10.3]} 44... h5
{[%clk 0:00:35.9]} 45. Ra7 {[%clk 0:00:09]} 45... Be6 {[%clk 0:00:28.8]} 46.
Ra5+ {[%clk 0:00:03.3]} 46... Bd5 {[%clk 0:00:22.8]} 47. Ra1 {[%clk 0:00:04.2]}
47... Kf5 {[%clk 0:00:21.1]} 48. Rf1+ {[%clk 0:00:04.2]} 48... Kg4 {[%clk
0:00:20.4]} 49. Kf2 {[%clk 0:00:03]} 49... Be6 {[%clk 0:00:18.8]} 50. Re1 {[%clk
0:00:03.9]} 50... Bf5 {[%clk 0:00:16]} 51. Rc1 {[%clk 0:00:04.8]} 51... Be6
{[%clk 0:00:16.1]} 52. Rb1 {[%clk 0:00:04.2]} 52... Kf5 {[%clk 0:00:16.4]} 53.
Rb4 {[%clk 0:00:03.2]} 53... Ke5 {[%clk 0:00:16.3]} 54. Ke3 {[%clk 0:00:03.5]}
54... Bd5 {[%clk 0:00:17.2]} 55. Rb5 {[%clk 0:00:03.8]} 55... f6 {[%clk
0:00:13.7]} 56. Kd3 {[%clk 0:00:04.2]} 56... g5 {[%clk 0:00:13.9]} 57. Ke3
{[%clk 0:00:03.7]} 57... g4 {[%clk 0:00:14.2]} 58. Kd3 {[%clk 0:00:03.5]} 58...
f5 {[%clk 0:00:14.6]} 59. Ra5 {[%clk 0:00:03.2]} 59... Kd6 {[%clk 0:00:13.1]}
60. Kd4 {[%clk 0:00:03.3]} 60... Be4 {[%clk 0:00:13.6]} 61. Ra6+ {[%clk
0:00:02.6]} 61... Kc7 {[%clk 0:00:13.4]} 62. Rh6 {[%clk 0:00:03.5]} 62... Bc6
{[%clk 0:00:12.2]} 63. Rxh5 {[%clk 0:00:03.9]} 63... f4 {[%clk 0:00:13.1]} 64.
gxf4 {[%clk 0:00:03.5]} 64... g3 {[%clk 0:00:13.6]} 65. Rg5 {[%clk 0:00:04.4]}
65... g2 {[%clk 0:00:14.5]} 66. h5 {[%clk 0:00:04.6]} 66... Kd7 {[%clk
0:00:14.7]} 67. h6 {[%clk 0:00:04.7]} 67... g1=Q+ {[%clk 0:00:13.7]} 68. Rxg1
{[%clk 0:00:03.3]} 68... Ke6 {[%clk 0:00:14.6]} 69. Rg7 {[%clk 0:00:03.2]} 69...
Kf5 {[%clk 0:00:15.5]} 70. Rf7+ {[%clk 0:00:03.2]} 70... Kg6 {[%clk 0:00:15.2]}
71. Rf8 {[%clk 0:00:04.1]} 71... Kxh6 {[%clk 0:00:15.4]} 72. Rf6+ {[%clk
0:00:04.6]} 72... Kg7 {[%clk 0:00:15.3]} 73. Rxc6 {[%clk 0:00:05.5]} 73... Kf7
{[%clk 0:00:15.6]} 74. Rc5 {[%clk 0:00:06.4]} 74... Kf6 {[%clk 0:00:16.5]} 75.
Re5 {[%clk 0:00:07.3]} 1-0

[Event "*** Titled Tuesday Blitz"]
[Site "Chess.com"]
[Date "2020.10.27"]
[Round "8"]
[White "teacher4chess"]
[Black "poppy73"]
[Result "0-1"]
[WhiteElo "2066"]
[BlackElo "2223"]
[TimeControl "180+1"]
[EndTime "11:30:39 PDT"]
[Termination "poppy73 won by checkmate"]

1. d4 {[%clk 0:02:59.7]} 1... Nf6 {[%clk 0:02:58.5]} 2. Nf3 {[%clk 0:02:58.8]}
2... g6 {[%clk 0:02:58]} 3. Nc3 {[%clk 0:02:58.3]} 3... d5 {[%clk 0:02:53.2]} 4.
Bf4 {[%clk 0:02:55.5]} 4... Bg7 {[%clk 0:02:53.1]} 5. e3 {[%clk 0:02:55.4]} 5...
c6 {[%clk 0:02:51.5]} 6. h3 {[%clk 0:02:55.2]} 6... O-O {[%clk 0:02:50.4]} 7.
Bd3 {[%clk 0:02:54.9]} 7... Nbd7 {[%clk 0:02:47.1]} 8. O-O {[%clk 0:02:54.2]}
8... Re8 {[%clk 0:02:46.3]} 9. e4 {[%clk 0:02:52.4]} 9... dxe4 {[%clk
0:02:41.8]} 10. Nxe4 {[%clk 0:02:52.3]} 10... Nd5 {[%clk 0:02:30.1]} 11. Bh2
{[%clk 0:02:47.1]} 11... N7f6 {[%clk 0:02:29.2]} 12. c3 {[%clk 0:02:42.4]} 12...
Nxe4 {[%clk 0:02:25.2]} 13. Bxe4 {[%clk 0:02:42.1]} 13... Bd7 {[%clk 0:02:09.5]}
14. Re1 {[%clk 0:02:39.7]} 14... Qb6 {[%clk 0:02:02.9]} 15. Qb3 {[%clk
0:02:35.5]} 15... Nf6 {[%clk 0:01:59.3]} 16. Bd3 {[%clk 0:02:24.7]} 16... Be6
{[%clk 0:01:57.9]} 17. Bc4 {[%clk 0:02:20.9]} 17... Bxc4 {[%clk 0:01:53.1]} 18.
Qxc4 {[%clk 0:02:19.9]} 18... Rad8 {[%clk 0:01:53]} 19. Ne5 {[%clk 0:02:17.8]}
19... Nd5 {[%clk 0:01:50.3]} 20. Qb3 {[%clk 0:02:15.8]} 20... e6 {[%clk
0:01:44.8]} 21. Nc4 {[%clk 0:02:12.9]} 21... Qxb3 {[%clk 0:01:43.6]} 22. axb3
{[%clk 0:02:12.3]} 22... a6 {[%clk 0:01:43.9]} 23. Rad1 {[%clk 0:01:54.2]} 23...
Rd7 {[%clk 0:01:43.1]} 24. Nd6 {[%clk 0:01:44.3]} 24... Red8 {[%clk 0:01:40.9]}
25. Ne4 {[%clk 0:01:43.4]} 25... Nf6 {[%clk 0:01:29.1]} 26. Nc5 {[%clk
0:01:39.3]} 26... Re7 {[%clk 0:01:29.3]} 27. Be5 {[%clk 0:01:36.3]} 27... Nd5
{[%clk 0:01:19.1]} 28. Bxg7 {[%clk 0:01:09.3]} 28... Kxg7 {[%clk 0:01:20]} 29.
g3 {[%clk 0:01:08.5]} 29... a5 {[%clk 0:01:17.3]} 30. Kg2 {[%clk 0:01:05.1]}
30... b6 {[%clk 0:01:17.1]} 31. Nd3 {[%clk 0:01:02.2]} 31... f6 {[%clk
0:01:12.5]} 32. c4 {[%clk 0:00:59.2]} 32... Nb4 {[%clk 0:01:07.3]} 33. Nf4
{[%clk 0:00:54.4]} 33... Kf7 {[%clk 0:01:06.7]} 34. Re2 {[%clk 0:00:42.8]} 34...
g5 {[%clk 0:01:03.7]} 35. Nh5 {[%clk 0:00:31.6]} 35... Red7 {[%clk 0:00:58.6]}
36. Red2 {[%clk 0:00:29.3]} 36... c5 {[%clk 0:00:51.9]} 37. g4 {[%clk
0:00:20.1]} 37... Rxd4 {[%clk 0:00:49.1]} 38. Rxd4 {[%clk 0:00:19]} 38... Rxd4
{[%clk 0:00:49.2]} 39. Rxd4 {[%clk 0:00:18.4]} 39... cxd4 {[%clk 0:00:50.1]} 40.
Kf3 {[%clk 0:00:17.9]} 40... e5 {[%clk 0:00:43.9]} 41. Ke4 {[%clk 0:00:17.4]}
41... Na6 {[%clk 0:00:32.2]} 42. Ng3 {[%clk 0:00:15.9]} 42... Nc5+ {[%clk
0:00:31.9]} 43. Kf3 {[%clk 0:00:15.9]} 43... Nxb3 {[%clk 0:00:31.6]} 44. Ne4
{[%clk 0:00:15.1]} 44... Nc5 {[%clk 0:00:31.1]} 45. Nd6+ {[%clk 0:00:14.5]}
45... Ke6 {[%clk 0:00:28.3]} 46. Nc8 {[%clk 0:00:14.3]} 46... e4+ {[%clk
0:00:28.3]} 47. Ke2 {[%clk 0:00:13.9]} 47... Na4 {[%clk 0:00:22.3]} 48. b3
{[%clk 0:00:12]} 48... Nc5 {[%clk 0:00:17.7]} 49. Nxb6 {[%clk 0:00:11.9]} 49...
Nxb3 {[%clk 0:00:17.8]} 50. Na4 {[%clk 0:00:11.6]} 50... Kd6 {[%clk 0:00:16.3]}
51. c5+ {[%clk 0:00:10.5]} 51... Nxc5 {[%clk 0:00:16]} 52. Nxc5 {[%clk
0:00:10.3]} 52... Kxc5 {[%clk 0:00:16.1]} 53. Kd2 {[%clk 0:00:10.3]} 53... a4
{[%clk 0:00:16.1]} 54. Kc2 {[%clk 0:00:10.4]} 54... a3 {[%clk 0:00:14.9]} 55.
Kb3 {[%clk 0:00:10.5]} 55... e3 {[%clk 0:00:15.3]} 56. fxe3 {[%clk 0:00:10.4]}
56... dxe3 {[%clk 0:00:16.2]} 57. Kxa3 {[%clk 0:00:10.6]} 57... e2 {[%clk
0:00:16.7]} 58. Kb3 {[%clk 0:00:11]} 58... e1=Q {[%clk 0:00:17.6]} 59. Kc2
{[%clk 0:00:11]} 59... Kd4 {[%clk 0:00:15.2]} 60. h4 {[%clk 0:00:10.9]} 60...
Qc3+ {[%clk 0:00:15]} 61. Kd1 {[%clk 0:00:10.4]} 61... Kd3 {[%clk 0:00:14.9]}
62. hxg5 {[%clk 0:00:10.1]} 62... Qd2# {[%clk 0:00:15.2]} 0-1